[Event "CIS Master Groups 2024"]
[Site "Vasto"]
[Date "2024.04.09"]
[Round "3.12"]
[White "Lanzani, Mario Lorenzo"]
[Black "Gueci, Tea"]
[Result "1/2-1/2"]
[ECO "A13"]
[WhiteElo "2259"]
[BlackElo "2205"]
[Annotator "RC"]
[PlyCount "55"]
[EventDate "2024.04.07"]
[EventType "team-tourn"]
[EventCountry "ITA"]
[SourceTitle "playchess.com"]
[Source "ChessBase"]
[SourceQuality "1"]
[TimeControl "40/5400+30:900+30"]

1. Nf3 {[%emt 0:00:09]} d5 {[%emt 0:00:03]} 2. c4 {[%emt 0:00:20]} e6 {[%emt 0:00:05]} 3. g3 {[%emt 0:00:22]} dxc4 {[%emt 0:00:06]} 4. Qa4+ {[%emt 0:04:54]} Bd7 {[%emt 0:00:13]} 5. Qxc4 {[%emt 0:00:12]} c5 {[%emt 0:00:06]} 6. Bg2 {[%emt 0:01:31]} Bc6 {[%emt 0:00:48]} 7. O-O {[%emt 0:01:06]} Nd7 {[%emt 0:01:16]} 8. Qc2 {[%emt 0:02:07]} Ngf6 {[%emt 0:01:03]} 9. b3 {[%emt 0:01:08]} Be7 {[%emt 0:02:59]} 10. Bb2 {[%emt 0:00:42]} O-O {[%emt 0:03:45]} 11. d3 {[%emt 0:01:14]} b5 {[%emt 0:01:39]} 12. Nbd2 {[%emt 0:01:31]} Qb6 {[%emt 0:02:02]} 13. e4 {[%emt 0:02:47]} Rfd8 {[%emt 0:06:06]} 14. Rac1 {[%emt 0:03:46]} Rac8 {[%emt 0:03:27]} 15. Qb1 {[%emt 0:01:16]} Qb7 {[%emt 0:12:10]} 16. Rfe1 {[%emt 0:02:11]} Nb6 {[%emt 0:12:10]} 17. Ne5 {[%emt 0:07:35]} Be8 {[%emt 0:03:25]} 18. Qa1 {[%emt 0:11:01]} Bf8 {[%emt 0:04:59]} 19. Rcd1 {[%emt 0:07:43]} Nfd7 {[%emt 0:04:29]} 20. Nef3 {[%emt 0:01:48]} Nb8 {[%emt 0:03:39]} 21. d4 {[%emt 0:15:27]} cxd4 {[%emt 0:02:20]} 22. Nxd4 {[%emt 0:00:43]} e5 {[%emt 0:01:27]} 23. N4f3 {[%emt 0:01:11]} f6 {[%emt 0:02:05]} 24. Nf1 {[%emt 0:02:37]} Bb4 {[%emt 0:06:16]} 25. Rxd8 {[%emt 0:01:03]} Rxd8 {[%emt 0:00:19]} 26. Rd1 {[%emt 0:00:39]} Rxd1 {[%emt 0:07:09]} 27. Qxd1 {[%emt 0:00:30]} Qd7 {[%emt 0:00:02]} 28. Qxd7 {[%emt 0:01:26]} 1/2-1/2

[Event "CIS Master Groups 2024"]
[Site "Vasto"]
[Date "2024.04.09"]
[Round "3.13"]
[White "Mastrovasilis, Dimitrios"]
[Black "Zwirs, Nico"]
[Result "1/2-1/2"]
[ECO "B51"]
[WhiteElo "2576"]
[BlackElo "2480"]
[Annotator "TA"]
[PlyCount "44"]
[EventDate "2024.04.07"]
[EventType "team-tourn"]
[EventCountry "ITA"]
[SourceTitle "playchess.com"]
[Source "ChessBase"]
[SourceQuality "1"]
[TimeControl "40/5400+30:900+30"]

{[%evp 12,44,22,10,2,8,14,11,22,0,23,0,0,0,0,0,0,0,0,0,0,0,0,-10,0,-8,-7,-12,-9,-15,0,-12,-16,-17,5]} 1. e4 {[%emt 0:00:13]} c5 {[%emt 0:00:01]} 2. Nf3 {[%emt 0:00:12]} d6 {[%emt 0:00:02]} 3. Bb5+ {[%emt 0:00:14]} Nd7 {[%emt 0:00:06]} 4. c3 {[%emt 0:00:28]} Ngf6 {[%emt 0:00:24]} 5. Qe2 {[%emt 0:00:22]} a6 {[%emt 0:00:51]} 6. Ba4 {[%emt 0:00:12][%cal Bb5a4,Ba4c2,Bc2d3][%mdl 32]} b5 {[%emt 0:01:24]} 7. Bc2 {[%emt 0:00:12]} Bb7 {[%emt 0:00:03]} 8. d4 {[%emt 0:02:25]} e6 {[%emt 0:00:29][%cal Be7e6,Be6e5,Be5d4][%mdl 32]} 9. O-O {[%emt 0:00:30]} Be7 {[%emt 0:00:23]} 10. Re1 {[%emt 0:04:46]} Qc7 {[%emt 0:02:33]} 11. Bd3 {[%emt 0:01:26]} O-O {[%emt 0:03:16] The position is equal.} 12. Nbd2 {[%emt 0:00:17]} cxd4 {[%emt 0:00:36]} 13. cxd4 {[%emt 0:00:27]} e5 {[%emt 0:00:14]} 14. b3 {[%emt 0:11:18]} Rfe8 {[%emt 0:05:21]} 15. Bb2 {[%emt 0:01:17]} exd4 {[%emt 0:01:36]} 16. Rac1 {[%emt 0:06:13]} Qd8 {[%emt 0:01:01]} 17. Bb1 {[%emt 0:10:52]} Rc8 {[%emt 0:05:41]} 18. Rxc8 {[%emt 0:08:47]} Qxc8 {[%emt 0:00:18]} 19. Qd3 {[%emt 0:06:20]} Bf8 {[%emt 0:17:24]} 20. Qxd4 {[%emt 0:04:07]} Qc5 {[%emt 0:11:23]} 21. h3 {[%emt 0:08:39]} Qxd4 {[%emt 0:05:48]} 22. Bxd4 {[%emt 0:01:20]} Nc5 {[%emt 0:06:49] Not much happened in this game.   Weighted Error Value: White=0.04 (flawless) /Black=0.03 (flawless) .  OK:         	White=6     	Black=10} 1/2-1/2

[Event "CIS Master Groups 2024"]
[Site "Vasto"]
[Date "2024.04.09"]
[Round "3.14"]
[White "Loiacono, Leonardo"]
[Black "David, Alberto"]
[Result "1/2-1/2"]
[ECO "B44"]
[WhiteElo "2309"]
[BlackElo "2512"]
[Annotator "TA"]
[PlyCount "89"]
[EventDate "2024.04.07"]
[EventType "team-tourn"]
[EventCountry "ITA"]
[SourceTitle "playchess.com"]
[Source "ChessBase"]
[SourceQuality "1"]
[TimeControl "40/5400+30:900+30"]

{[%evp 13,89,21,39,23,19,11,40,23,56,52,56,49,55,45,52,41,85,41,42,39,45,47,56,55,53,42,65,66,75,75,77,62,73,63,67,0,75,55,66,37,41,15,14,14,36,39,39,41,41,36,37,41,32,24,43,0,0,0,0,0,27,21,22,28,25,0,0,0,75,75,75,53,146,157,153,159,144,74]} 1. e4 {[%emt 0:00:12]} c5 {[%emt 0:01:28]} 2. Nf3 {[%emt 0:00:10][%cal Bg1f3,Bf3d4,Bd4b5][%mdl 32]} e6 {[%emt 0:00:26]} 3. d4 {[%emt 0:00:33]} cxd4 {[%emt 0:00:06]} 4. Nxd4 {[%emt 0:00:04]} Nc6 {[%emt 0:00:51]} 5. Nb5 {[%emt 0:00:47]} d6 {[%emt 0:00:57]} 6. c4 {[%emt 0:00:06]} a6 {[%emt 0:05:37]} 7. N5c3 {[%emt 0:02:06]} Nf6 {[%emt 0:00:25][%cal Od6d5]} 8. Be2 {[%emt 0:00:41]} b6 {[%emt 0:04:02]} 9. O-O {[%emt 0:01:31]} Bb7 {[%emt 0:06:46]} 10. Be3 {[%emt 0:00:45] White is slightly better.} Ne5 {[%emt 0:01:22]} 11. f4 {[%emt 0:02:29]} Ned7 {[%emt 0:00:24]} 12. Bf3 {[%emt 0:04:00]} Be7 {[%emt 0:13:03]} 13. Nd2 {[%emt 0:04:44]} O-O {[%emt 0:03:32]} 14. Qe2 {[%emt 0:13:44]} Qb8 {[%emt 0:08:23][%cal Ob6b5]} 15. a4 {[%emt 0:07:24]} h6 {[%emt 0:04:17]} 16. Rfc1 {[%emt 0:11:22]} a5 {[%emt 0:02:12]} 17. Nb3 {[%emt 0:01:39]} Nc5 {[%emt 0:17:12]} 18. Nxc5 {[%emt 0:00:22]} bxc5 {[%emt 0:00:03]} 19. Qc2 {[%emt 0:04:43]} Ra6 {[%emt 0:05:40]} 20. Re1 {[%emt 0:02:31]} Bc6 {[%emt 0:02:17]} 21. Rad1 {[%emt 0:18:04]} Qb7 {[%emt 0:11:00]} 22. Bf2 {[%emt 0:03:16]} Rd8 {[%emt 0:02:16]} 23. Nb5 {[%emt 0:01:01]} Rd7 {[%emt 0:04:51]} 24. Bg3 {[%emt 0:06:44] White is more active.} (24. b3 $14) 24... Rd8 {[%emt 0:03:05]} (24... d5 $1 $11) 25. Rd2 {[%emt 0:00:56]} Rd7 {[%emt 0:00:20]} 26. e5 {[%emt 0:07:35]} dxe5 {[%emt 0:00:21]} 27. Rxd7 {[%emt 0:00:11]} Nxd7 {[%emt 0:00:47][%cal Bf6d7,Bd7f8,Bf8g6,Bg6e7][%mdl 32]} 28. Bxc6 {[%emt 0:00:05]} Qxc6 {[%emt 0:00:32]} 29. fxe5 {[%emt 0:00:04]} Ra8 {[%emt 0:00:50]} 30. Rd1 {[%emt 0:00:53]} Rd8 {[%emt 0:00:18]} 31. Qc3 {[%emt 0:01:05]} Nf8 {[%emt 0:01:48]} 32. Rxd8 {[%emt 0:00:23]} Bxd8 {[%emt 0:00:01]} 33. Qd3 {[%emt 0:00:44] Dodges Qe4} Be7 {[%emt 0:00:30]} 34. Be1 {[%emt 0:00:26][%cal Od3f3]} Ng6 {[%emt 0:00:04]} 35. Qe2 {[%emt 0:03:29]} Bd8 {[%emt 0:01:42]} 36. g3 {[%emt 0:00:33]} Bc7 {[%emt 0:00:22]} 37. Bc3 {[%emt 0:00:27]} Bb8 {[%emt 0:00:22]} 38. h4 {[%emt 0:01:12]} Ne7 {[%emt 0:00:46]} 39. Qd3 {[%emt 0:01:10] Qd8+ is the strong threat.} Nf5 {[%emt 0:00:09]} 40. h5 {[%emt 0:01:12]} ({But not} 40. Bxa5 Bxe5 41. Be1 Bxb2 $17) (40. g4 $5 Nd4 $8 41. Nxd4 cxd4 42. Qxd4 $11) 40... Bc7 {[%emt 0:00:33] [#]} (40... Nd4 $11 {remains equal.}) 41. Kf2 $1 $16 {[%emt 0:16:02]} Bb6 {[%emt 0:01:11] [#]} 42. Qf3 $1 {[%emt 0:00:00]} Qxf3+ {[%emt 0:03:44]} (42... Qe8 $14) 43. Kxf3 {[%emt 0:00:00] White is clearly better.} Ne7 {[%emt 0:00:34]} 44. Nd6 {[%emt 0:00:00]} Nc6 {[%emt 0:00:40]} 45. Ne4 {[%emt 0:00:00] Weighted Error Value: White=0.10 (very precise) /Black=0.16 (very precise) .  Mistake:       	White=2     	Black=3      Inaccurate:     	White=4     	Black=3      OK:         	White=12    	Black=13     Best:        	White=2     	Black=1      Strong:       	White=2     	---} (45. Nb7 $142) 1/2-1/2

[Event "CIS Master Groups 2024"]
[Site "Vasto"]
[Date "2024.04.09"]
[Round "3.15"]
[White "Collutiis, Duilio"]
[Black "Damia, Angelo"]
[Result "1/2-1/2"]
[ECO "B15"]
[WhiteElo "2334"]
[BlackElo "2234"]
[Annotator "RC"]
[PlyCount "105"]
[EventDate "2024.04.07"]
[EventType "team-tourn"]
[EventCountry "ITA"]
[SourceTitle "playchess.com"]
[Source "ChessBase"]
[SourceQuality "1"]
[TimeControl "40/5400+30:900+30"]

1. e4 {[%emt 0:00:49]} g6 {[%emt 0:02:43]} 2. d4 {[%emt 0:00:27]} Bg7 {[%emt 0:00:04]} 3. Nf3 {[%emt 0:01:25]} c6 {[%emt 0:00:22]} 4. Nc3 {[%emt 0:01:39]} d5 {[%emt 0:00:14]} 5. h3 {[%emt 0:00:27]} dxe4 {[%emt 0:06:07]} 6. Nxe4 {[%emt 0:00:12]} Nd7 {[%emt 0:00:03]} 7. Bd3 {[%emt 0:02:45]} Ngf6 {[%emt 0:00:24]} 8. Nxf6+ {[%emt 0:00:45]} Nxf6 {[%emt 0:02:42]} 9. O-O {[%emt 0:00:36]} O-O {[%emt 0:00:49]} 10. Re1 {[%emt 0:01:43]} Bf5 {[%emt 0:03:35]} 11. Bc4 {[%emt 0:14:58]} Qc7 {[%emt 0:06:53]} 12. c3 {[%emt 0:03:03]} Rad8 {[%emt 0:00:39]} 13. Qe2 {[%emt 0:00:45]} Rfe8 {[%emt 0:03:38]} 14. Bg5 {[%emt 0:07:12]} Nd5 {[%emt 0:01:54]} 15. Rad1 {[%emt 0:00:18]} f6 {[%emt 0:24:22]} 16. Bc1 {[%emt 0:01:57]} Kh8 {[%emt 0:02:29]} 17. Bb3 {[%emt 0:11:13]} Rd6 {[%emt 0:07:46]} 18. Nh4 {[%emt 0:10:49]} Bc8 {[%emt 0:02:07]} 19. Bc2 {[%emt 0:02:31]} Re6 {[%emt 0:02:26]} 20. Qd3 {[%emt 0:02:57]} Rxe1+ {[%emt 0:05:56]} 21. Rxe1 {[%emt 0:00:38]} f5 {[%emt 0:00:02]} 22. Nf3 {[%emt 0:00:55]} Kg8 {[%emt 0:10:33]} 23. Bb3 {[%emt 0:01:27]} Kf8 {[%emt 0:05:27]} 24. Ne5 {[%emt 0:00:30]} Qd6 {[%emt 0:04:31]} 25. Qf3 {[%emt 0:05:23]} e6 {[%emt 0:01:54]} 26. Qg3 {[%emt 0:03:34]} Qe7 {[%emt 0:00:26]} 27. Bxd5 {[%emt 0:01:05]} cxd5 {[%emt 0:00:08]} 28. Bf4 {[%emt 0:00:07]} Kg8 {[%emt 0:00:25]} 29. h4 {[%emt 0:01:58]} Bxe5 {[%emt 0:03:02]} 30. Bxe5 {[%emt 0:02:05]} Kf7 {[%emt 0:00:19]} 31. Bf4 {[%emt 0:01:56]} h5 {[%emt 0:01:50]} 32. Bg5 {[%emt 0:02:22]} Qd7 {[%emt 0:00:01]} 33. Qe5 {[%emt 0:00:41]} Kg8 {[%emt 0:00:01]} 34. Qg3 {[%emt 0:03:24]} a6 {[%emt 0:02:19]} 35. Bf4 {[%emt 0:01:06]} Kh7 {[%emt 0:00:24]} 36. Kh2 {[%emt 0:00:49]} Qe7 {[%emt 0:00:35]} 37. Re5 {[%emt 0:01:47]} Bd7 {[%emt 0:00:36]} 38. Bg5 {[%emt 0:00:18]} Qf7 {[%emt 0:00:17]} 39. Qe3 {[%emt 0:00:17]} Bc6 {[%emt 0:00:24]} 40. f3 {[%emt 0:01:11]} Bd7 {[%emt 0:00:34]} 41. Qf4 {[%emt 0:16:26]} Kg8 {[%emt 0:15:29]} 42. Re1 {[%emt 0:01:58]} Bc6 {[%emt 0:00:20]} 43. Qg3 {[%emt 0:00:50]} Kh7 {[%emt 0:00:34]} 44. Bf4 {[%emt 0:00:47]} Qf6 {[%emt 0:00:33]} 45. Bd2 {[%emt 0:00:45]} Kg8 {[%emt 0:00:00]} 46. Bg5 {[%emt 0:00:00]} Qf7 {[%emt 0:00:00]} 47. Qe5 {[%emt 0:00:00]} Qg7 {[%emt 0:00:00]} 48. Qe3 {[%emt 0:00:00]} Qc7+ {[%emt 0:00:00]} 49. Bf4 {[%emt 0:00:00]} Qe7 {[%emt 0:00:00]} 50. Kh3 {[%emt 0:00:00]} Kh7 {[%emt 0:00:00]} 51. Rg1 {[%emt 0:00:00]} Qf7 {[%emt 0:00:00]} 52. Be5 {[%emt 0:00:00]} Rf8 {[%emt 0:00:00]} 53. g3 {[%emt 0:00:00]} 1/2-1/2

[Event "CIS Master Groups 2024"]
[Site "Vasto"]
[Date "2024.04.09"]
[Round "3.17"]
[White "Ceres, Dragos"]
[Black "Socko, Bartosz"]
[Result "1/2-1/2"]
[ECO "C47"]
[WhiteElo "2486"]
[BlackElo "2565"]
[Annotator "TA"]
[PlyCount "68"]
[EventDate "2024.04.07"]
[EventType "team-tourn"]
[EventCountry "ITA"]
[SourceTitle "playchess.com"]
[Source "ChessBase"]
[SourceQuality "1"]
[TimeControl "40/5400+30:900+30"]

{[%evp 9,68,10,9,9,12,16,0,9,0,10,12,3,26,7,14,0,0,0,0,0,0,0,0,0,0,0,0,0,0,0,0,-25,0,0,0,0,0,0,0,0,0,0,0,-21,-15,-5,-16,-17,-5,-8,0,0,0,0,0,0,0,-2,0,0,0]} 1. e4 {[%emt 0:00:01]} e5 {[%emt 0:00:05]} 2. Nf3 {[%emt 0:00:04]} Nf6 {[%emt 0:00:06]} 3. Nc3 {[%emt 0:00:04]} Nc6 {[%emt 0:00:22]} 4. h3 {[%emt 0:00:09]} d5 {[%emt 0:05:16]} 5. exd5 {[%emt 0:00:06]} Nxd5 {[%emt 0:00:05]} 6. Bb5 {[%emt 0:00:03]} Nxc3 {[%emt 0:00:15]} 7. bxc3 {[%emt 0:00:06]} Bd6 {[%emt 0:00:06]} 8. O-O {[%emt 0:00:25][%cal Of3e5]} O-O {[%emt 0:00:04]} 9. d4 {[%emt 0:06:53]} exd4 {[%emt 0:00:07]} 10. cxd4 {[%emt 0:00:03]} Ne7 {[%emt 0:00:46]} 11. Bd3 {[%emt 0:00:46]} Bf5 {[%emt 0:01:09]} 12. Rb1 {[%emt 0:00:13]} b6 {[%emt 0:01:07]} 13. Bg5 {[%emt 0:03:35]} Bxd3 {[%emt 0:04:00]} 14. Qxd3 {[%emt 0:03:30]} h6 {[%emt 0:00:25]} 15. Be3 {[%emt 0:01:21]} Qd7 {[%emt 0:02:28]} 16. Rfd1 {[%emt 0:00:30][%cal Bf1d1,Bd1d3,Bd3e3][%mdl 32]} Qf5 {[%emt 0:03:02]} 17. c4 {[%emt 0:03:44][%cal Oc4c5]} Qxd3 {[%emt 0:00:39]} 18. Rxd3 {[%emt 0:00:08] [#] Hoping for c5.} Rad8 {[%emt 0:01:58]} 19. g4 {[%emt 0:07:49]} Ng6 {[%emt 0:10:14]} 20. Rbd1 {[%emt 0:06:54]} Rde8 {[%emt 0:05:40]} 21. c5 {[%emt 0:12:14] The position is equal.} Bf4 {[%emt 0:01:06]} 22. d5 {[%emt 0:01:49]} Bxe3 {[%emt 0:02:09]} 23. Rxe3 {[%emt 0:04:10]} bxc5 {[%emt 0:02:40]} 24. Rc1 {[%emt 0:10:36]} Nf4 {[%emt 0:02:10][%csl LRd5,LRh3] [#] And now ...Rxe3 would win.} 25. Rxc5 {[%emt 0:00:07]} Rd8 {[%emt 0:16:35]} 26. Ne5 {[%emt 0:09:38]} Rxd5 {[%emt 0:01:51]} 27. Rxd5 {[%emt 0:00:08]} Nxd5 $11 {[%emt 0:00:09][%mdl 4096] Endgame. KRN-KRN} 28. Ra3 {[%emt 0:00:49]} Ra8 {[%emt 0:03:07]} 29. Nc6 {[%emt 0:01:25]} a6 {[%emt 0:00:18]} 30. Ra5 {[%emt 0:03:51]} Nf4 {[%emt 0:00:11]} 31. h4 {[%emt 0:00:07]} Nd3 {[%emt 0:04:42]} 32. Rd5 {[%emt 0:01:45]} Nf4 {[%emt 0:00:26]} 33. Ra5 {[%emt 0:00:09]} Nd3 {[%emt 0:00:06]} 34. Rd5 {[%emt 0:00:04]} Nf4 {[%emt 0:00:47] An even fight not without its subleties.   Weighted Error Value: White=0.03 (flawless) /Black=0.03 (flawless) .  OK:         	White=13    	Black=14} 1/2-1/2

[Event "CIS Master Groups 2024"]
[Site "Vasto"]
[Date "2024.04.09"]
[Round "3.18"]
[White "Rombaldoni, Denis"]
[Black "Lumachi, Gabriele"]
[Result "0-1"]
[ECO "A05"]
[WhiteElo "2484"]
[BlackElo "2413"]
[Annotator "TA"]
[PlyCount "88"]
[EventDate "2024.04.07"]
[EventType "team-tourn"]
[EventCountry "ITA"]
[SourceTitle "playchess.com"]
[Source "ChessBase"]
[SourceQuality "1"]
[TimeControl "40/5400+30:900+30"]

{[%evp 13,88,9,20,0,14,-1,20,18,32,29,36,20,13,7,3,20,27,27,29,-3,-7,-37,-34,-56,-25,-83,-77,-62,-37,-32,-46,-29,-42,-19,14,16,10,10,22,17,26,31,63,0,17,-25,0,-84,-108,-107,-94,-106,-92,-134,-139,-138,-133,-152,-118,-141,-149,-186,-164,-261,-248,-585,-463,-463,-463,-462,-462,-638,-635,-627,-627,-682,-620]} 1. Nf3 {[%emt 0:00:13]} Nf6 {[%emt 0:00:16]} 2. g3 {[%emt 0:00:04]} b6 {[%emt 0:00:11]} 3. Bg2 {[%emt 0:00:04]} Bb7 {[%emt 0:00:06]} 4. O-O {[%emt 0:00:18]} e6 {[%emt 0:00:06]} 5. d3 {[%emt 0:01:49]} d5 {[%emt 0:00:09]} 6. Nbd2 {[%emt 0:05:08]} Nbd7 {[%emt 0:00:11]} 7. Re1 {[%emt 0:06:01]} Bc5 {[%emt 0:01:58][%cal Oc5f2]} 8. c4 {[%emt 0:01:37]} O-O {[%emt 0:04:51]} 9. Qc2 {[%emt 0:00:21]} Re8 {[%emt 0:16:08]} 10. b3 {[%emt 0:01:34] The position is equal.} dxc4 {[%emt 0:22:11]} 11. Nxc4 {[%emt 0:07:50]} e5 {[%emt 0:08:17]} 12. Bb2 {[%emt 0:19:27]} e4 {[%emt 0:04:45]} 13. dxe4 {[%emt 0:00:50]} Bxe4 {[%emt 0:00:16]} 14. Qc3 {[%emt 0:03:15]} b5 {[%emt 0:06:52]} 15. Ncd2 {[%emt 0:19:52]} Bb7 {[%emt 0:00:42]} 16. b4 {[%emt 0:03:06]} Bf8 {[%emt 0:00:53]} 17. e4 {[%emt 0:06:39] Repels Nd5} c5 {[%emt 0:04:06]} 18. Ng5 {[%emt 0:10:22]} Ne5 {[%emt 0:05:31]} 19. Rad1 {[%emt 0:01:24]} (19. bxc5 $11 {remains equal.} Rc8 20. Nb3) 19... cxb4 $17 {[%emt 0:08:38]} 20. Qb3 {[%emt 0:00:48] [#] Bxe5 is the strong threat.} Nfg4 {[%emt 0:00:27]} 21. Ndf3 {[%emt 0:01:45]} Nxf3+ {[%emt 0:00:39]} 22. Nxf3 {[%emt 0:00:13][%cal Bg5f3,Bf3d4,Bd4f5][%mdl 32]} Qb6 {[%emt 0:01:50] Chess con chili.} 23. Bd4 {[%emt 0:01:36]} Bc5 {[%emt 0:08:07][%cal Oa8d8]} (23... Qe6 {simplifies} 24. Qb2 Rac8 25. h3 Nf6) 24. h3 {[%emt 0:01:17]} Bxd4 {[%emt 0:00:59]} 25. Nxd4 {[%emt 0:01:27]} Ne5 {[%emt 0:01:08]} 26. Qxb4 {[%emt 0:00:16]} a6 {[%emt 0:03:04]} 27. Nf5 {[%emt 0:01:28]} Rad8 {[%emt 0:01:01]} 28. Rxd8 {[%emt 0:02:24]} ({White should play} 28. Nd6 $14 Rf8 29. a4) 28... Qxd8 {[%emt 0:00:37]} 29. Qd6 {[%emt 0:02:33]} g6 {[%emt 0:00:25]} 30. Qxd8 {[%emt 0:00:15]} (30. Rd1 $11 Qxd6 31. Nxd6) 30... Rxd8 {[%emt 0:00:05]} 31. Ne7+ {[%emt 0:00:34]} Kf8 {[%emt 0:00:13]} 32. Nd5 {[%emt 0:00:02]} Nc4 {[%emt 0:00:54]} 33. Rc1 {[%emt 0:01:06] [#]} Bxd5 $1 {[%emt 0:00:49]} 34. exd5 {[%emt 0:00:04][%mdl 4096] Endgame. KRB-KRN} Ke7 {[%emt 0:00:18]} 35. a4 {[%emt 0:00:28]} Kd6 {[%emt 0:00:21] Black is more active.} 36. axb5 {[%emt 0:00:15]} axb5 {[%emt 0:00:06]} 37. Ra1 {[%emt 0:00:24]} Rb8 {[%emt 0:01:15]} 38. Ra7 {[%emt 0:02:08]} (38. Rc1 $142) 38... b4 $19 {[%emt 0:00:13] White must now prevent ...b3.} 39. Rxf7 $2 {[%emt 0:00:02]} (39. Bf1 {nothing else works.} Ne5 (39... Kxd5 $2 40. Rxf7 b3 41. Rd7+ Nd6 42. Bd3 $19) 40. f4) 39... Nd2 {[%emt 0:00:49] Threatens to win with ...b3. Black is clearly winning.} 40. Rf6+ {[%emt 0:00:00]} Ke5 {[%emt 0:00:00]} 41. Re6+ {[%emt 0:05:08]} Kd4 {[%emt 0:03:24] Hoping for ...b3.} 42. Re2 {[%emt 0:04:20]} Kd3 {[%emt 0:00:45]} 43. Re3+ {[%emt 0:05:23]} Kc2 {[%emt 0:00:21]} 44. Re2 {[%emt 0:00:32]} Kd1 {[%emt 0:01:11] Weighted Error Value: White=0.43/Black=0.13 (very precise) .  Mistake:       	White=5     	---        Inaccurate:     	White=5     	Black=3      OK:         	White=11    	Black=17     Best:        	White=2     	Black=1      Strong:       	---       	Black=1} 0-1

[Event "CIS Master Groups 2024"]
[Site "Vasto"]
[Date "2024.04.09"]
[Round "3.19"]
[White "Bettalli, Francesco"]
[Black "Garcia Palermo, Carlos Horacio"]
[Result "1/2-1/2"]
[ECO "B13"]
[WhiteElo "2309"]
[BlackElo "2407"]
[Annotator "TA"]
[PlyCount "103"]
[EventDate "2024.04.07"]
[EventType "team-tourn"]
[EventCountry "ITA"]
[SourceTitle "playchess.com"]
[Source "ChessBase"]
[SourceQuality "1"]
[TimeControl "40/5400+30:900+30"]

{[%evp 19,103,26,26,29,24,18,36,2,3,0,0,-21,5,-6,-8,-41,-48,-22,-31,-62,-83,-53,-39,-56,-26,-40,0,0,0,0,0,0,15,0,0,-6,0,0,181,101,100,102,102,75,105,50,124,10,11,12,10,11,14,12,21,20,16,18,26,0,0,0,8,8,17,8,8,8,18,0,0,0,27,27,33,34,32,30,36,37,98,39,56,0,113,0]} 1. e4 {[%emt 0:00:06]} c6 {[%emt 0:00:07]} 2. d4 {[%emt 0:00:10]} d5 {[%emt 0:00:06]} 3. exd5 {[%emt 0:00:20]} cxd5 {[%emt 0:00:07]} 4. Bd3 {[%emt 0:00:05]} Nc6 {[%emt 0:00:47]} 5. c3 {[%emt 0:00:07]} Nf6 {[%emt 0:00:26]} 6. Bf4 {[%emt 0:00:08]} Bg4 {[%emt 0:00:40]} 7. Qb3 {[%emt 0:00:08]} Qd7 {[%emt 0:03:37]} 8. Nd2 {[%emt 0:00:12]} e6 {[%emt 0:00:06]} 9. Ngf3 {[%emt 0:00:04]} Bd6 {[%emt 0:00:13]} 10. Bxd6 {[%emt 0:00:05]} Qxd6 {[%emt 0:00:04]} 11. O-O {[%emt 0:00:06]} O-O {[%emt 0:00:17]} 12. Rae1 {[%emt 0:00:04]} Bf5 {[%emt 0:00:39]} 13. Ne5 {[%emt 0:10:10] Black should prevent Bxf5. White is slightly better.} Bxd3 {[%emt 0:01:48]} 14. Nxd3 {[%emt 0:00:04]} Rab8 {[%emt 0:01:38]} 15. Qd1 {[%emt 0:11:24]} a5 {[%emt 0:05:14]} 16. Re3 {[%emt 0:08:31]} b5 {[%emt 0:01:21]} 17. a3 {[%emt 0:00:20]} b4 {[%emt 0:00:52]} 18. axb4 {[%emt 0:00:05]} axb4 {[%emt 0:00:07]} 19. g4 {[%emt 0:01:23]} bxc3 {[%emt 0:02:21]} 20. bxc3 {[%emt 0:00:55]} Nd7 {[%emt 0:05:25]} 21. f4 {[%emt 0:02:33]} Rbc8 {[%emt 0:00:50]} 22. Nb3 {[%emt 0:24:50]} Qa3 {[%emt 0:11:08]} 23. Rg3 {[%emt 0:09:57]} Na5 {[%emt 0:19:43]} 24. Nbc5 {[%emt 0:01:30]} Nxc5 {[%emt 0:00:15]} 25. Nxc5 {[%emt 0:00:04]} Nc4 {[%emt 0:00:51]} 26. Qd3 {[%emt 0:07:27]} Rfe8 {[%emt 0:02:02]} 27. Rh3 {[%emt 0:01:37]} g6 {[%emt 0:00:44]} 28. f5 {[%emt 0:02:07]} Ne5 {[%emt 0:04:29]} (28... exf5 $11 {and Black has nothing to worry.} 29. gxf5 Qa7) 29. Qg3 {[%emt 0:02:15]} (29. Qd2 $1 $18 {[%cal Rd2h6] Qh6 would kill now.} exf5 (29... Nxg4 $2 {too greedy.} 30. fxg6 fxg6 31. Qf4 $18) 30. Qh6 Nxg4 31. Qxh7+ Kf8 32. Rg3 (32. Qh8+ Ke7 $18)) 29... exf5 $16 {[%emt 0:01:04]} 30. gxf5 {[%emt 0:01:30][%cal Og3g5] Hoping for Qg5!} Rxc5 {[%emt 0:00:28]} 31. dxc5 {[%emt 0:00:08]} Qxc5+ {[%emt 0:00:18]} 32. Kh1 {[%emt 0:01:00]} (32. Kg2 $1 $16) 32... Qb5 {[%emt 0:07:58] [#]} (32... Qc4 $14 33. Kg1 Qg4) 33. Qg2 {[%emt 0:09:52]} ({White should play} 33. Qf4 $1 $16 {And now fxg6 would win.} Qc4 34. Re3 Qxf4 35. Rxf4) 33... Ng4 $11 {[%emt 0:01:45] Strongly threatening ...Ne3.} 34. fxg6 {[%emt 0:00:03]} hxg6 {[%emt 0:00:13] ...Ne3 is the strong threat.} 35. Qf3 {[%emt 0:00:37] Really sharp!} f5 {[%emt 0:00:45]} 36. Qd3 {[%emt 0:07:26]} Qc4 {[%emt 0:05:41]} (36... Qc5 {keeps more tension.} 37. Qa6 Kg7 38. Qb7+ Qe7) 37. Qxc4 {[%emt 0:01:00]} dxc4 {[%emt 0:00:06][%mdl 4096] Endgame. KRR-KRN} 38. Rg3 {[%emt 0:00:19]} Re2 {[%emt 0:01:09]} 39. Kg1 {[%emt 0:00:39] Threatens to win with h3.} Kh7 {[%emt 0:06:33]} 40. Rf4 {[%emt 0:00:30]} Ne5 {[%emt 0:02:14]} 41. h3 {[%emt 0:01:41]} Kh6 {[%emt 0:06:02]} 42. Kf1 {[%emt 0:01:04]} Ra2 {[%emt 0:00:13]} 43. Re3 {[%emt 0:00:50]} Ra5 {[%emt 0:01:28]} 44. Kg2 {[%emt 0:01:23]} Kg5 {[%emt 0:01:25]} 45. Kg3 {[%emt 0:01:00]} Kf6 {[%emt 0:03:06]} 46. h4 {[%emt 0:00:54]} g5 {[%emt 0:04:54]} 47. hxg5+ {[%emt 0:00:27]} Kxg5 {[%emt 0:00:06]} 48. Rd4 {[%emt 0:01:55]} Rc5 {[%emt 0:00:29]} 49. Re2 {[%emt 0:00:59]} Ng4 {[%emt 0:04:16]} (49... Ra5 $14) 50. Kf3 {[%emt 0:05:37] White is more active.} (50. Rd8 $16) 50... Ne5+ $14 {[%emt 0:00:54]} 51. Kg3 {[%emt 0:00:07]} ({White should try} 51. Ke3 $14) 51... Ng4 $1 $16 {[%emt 0:00:08] [#]} 52. Kf3 {[%emt 0:01:19] Weighted Error Value: White=0.17 (very precise) /Black=0.15 (very precise) .  Loses game:     	---       	Black=1      Mistake:       	White=6     	Black=2      Inaccurate:     	White=4     	Black=5      OK:         	White=14    	Black=16     Best:        	---       	Black=2      Strong:       	---       	Black=1} (52. Rd8 $1 $16 {[%cal Rd8g8]}) 1/2-1/2